[Event "Titled Tuesday Blitz November 08 Early 2022"]
[White "Zaragatski, Ilja"]
[Black "Nouri, Alekhine"]
[WhiteFideId "4655192"]
[BlackFideId "5216184"]
[WhiteElo "2460"]
[BlackElo "2151"]
[Result "0-1"]
[Round "10"]
[TimeControl "180+1"]
[Date "2022.11.09"]
[WhiteClock "0:00:02"]
[BlackClock "0:01:16"]

1. g3 {[%clk 0:02:55]}  c5 {[%clk 0:02:59]} 2. Bg2 {[%clk 0:02:55]}  g6 {[%clk 0:03:00]} 3. c4 {[%clk 0:02:55]}  Bg7 {[%clk 0:03:00]} 4. Nc3 {[%clk 0:02:56]}  Nc6 {[%clk 0:03:01]} 5. a3 {[%clk 0:02:56]}  d6 {[%clk 0:03:01]} 6. Rb1 {[%clk 0:02:53]}  Nf6 {[%clk 0:03:01]} 7. b4 {[%clk 0:02:52]}  cxb4 {[%clk 0:03:02]} 8. axb4 {[%clk 0:02:52]}  O-O {[%clk 0:03:03]} 9. Nf3 {[%clk 0:02:44]}  Bg4 {[%clk 0:03:02]} 10. O-O {[%clk 0:02:37]}  Bxf3 {[%clk 0:03:01]} 11. Bxf3 {[%clk 0:02:37]}  Nd7 {[%clk 0:02:58]} 12. Bg2 {[%clk 0:02:09]}  Rc8 {[%clk 0:02:51]} 13. Nd5 {[%clk 0:01:47]}  Nb6 {[%clk 0:02:40]} 14. d3 {[%clk 0:01:39]}  Nxd5 {[%clk 0:02:38]} 15. Bxd5 {[%clk 0:01:39]}  e6 {[%clk 0:02:39]} 16. Bg2 {[%clk 0:01:38]}  d5 {[%clk 0:02:39]} 17. cxd5 {[%clk 0:01:31]}  exd5 {[%clk 0:02:40]} 18. b5 {[%clk 0:01:28]}  Nd4 {[%clk 0:02:39]} 19. e3 {[%clk 0:01:21]}  Ne6 {[%clk 0:02:34]} 20. Ba3 {[%clk 0:01:15]}  Re8 {[%clk 0:02:32]} 21. d4 {[%clk 0:01:15]}  Qa5 {[%clk 0:02:26]} 22. Qb3 {[%clk 0:01:00]}  Rc3 {[%clk 0:02:25]} 23. Bb4 {[%clk 0:01:00]}  Rxb3 {[%clk 0:02:24]} 24. Bxa5 {[%clk 0:01:00]}  Rxb1 {[%clk 0:02:04]} 25. Rxb1 {[%clk 0:01:01]}  b6 {[%clk 0:02:05]} 26. Bb4 {[%clk 0:00:58]}  Rd8 {[%clk 0:02:05]} 27. Ra1 {[%clk 0:00:46]}  Rd7 {[%clk 0:02:00]} 28. Rc1 {[%clk 0:00:46]}  Bf8 {[%clk 0:01:47]} 29. Rc8 {[%clk 0:00:45]}  Kg7 {[%clk 0:01:47]} 30. Bxf8+ {[%clk 0:00:38]}  Nxf8 {[%clk 0:01:48]} 31. Kf1 {[%clk 0:00:23]}  Ne6 {[%clk 0:01:47]} 32. Ke2 {[%clk 0:00:23]}  Nc7 {[%clk 0:01:47]} 33. Bh3 {[%clk 0:00:17]}  f5 {[%clk 0:01:45]} 34. g4 {[%clk 0:00:17]}  fxg4 {[%clk 0:01:34]} 35. Bxg4 {[%clk 0:00:18]}  Re7 {[%clk 0:01:34]} 36. Rd8 {[%clk 0:00:18]}  Nxb5 {[%clk 0:01:34]} 37. Kd3 {[%clk 0:00:16]}  Nc7 {[%clk 0:01:34]} 38. f3 {[%clk 0:00:15]}  h5 {[%clk 0:01:29]} 39. Bh3 {[%clk 0:00:15]}  Rf7 {[%clk 0:01:30]} 40. Bg2 {[%clk 0:00:14]}  a5 {[%clk 0:01:22]} 41. h4 {[%clk 0:00:14]}  b5 {[%clk 0:01:21]} 42. Rb8 {[%clk 0:00:12]}  b4 {[%clk 0:01:20]} 43. e4 {[%clk 0:00:11]}  Ne6 {[%clk 0:01:20]} 44. Ke3 {[%clk 0:00:11]}  Nf4 {[%clk 0:01:20]} 45. Bf1 {[%clk 0:00:11]}  dxe4 {[%clk 0:01:20]} 46. fxe4 {[%clk 0:00:10]}  Nd5+ {[%clk 0:01:15]} 47. exd5 {[%clk 0:00:10]}  Rxf1 {[%clk 0:01:16]} 48. d6 {[%clk 0:00:09]}  Rf7 {[%clk 0:01:16]} 49. Ke4 {[%clk 0:00:05]}  g5 {[%clk 0:01:17]} 50. hxg5 {[%clk 0:00:05]}  h4 {[%clk 0:01:17]} 51. Ke5 {[%clk 0:00:02]}  h3 {[%clk 0:01:16]} 52. Ke6 {[%clk 0:00:02]}  h2 {[%clk 0:01:16]} 0-1


[Site "https://www.chess.com"]

[Event "Titled Tuesday Blitz November 08 Early 2022"]
[White "Adewumi, Tanitoluwa"]
[Black "Forgacs, Attila Jr."]
[WhiteFideId "30966396"]
[BlackFideId "773654"]
[WhiteElo "2544"]
[BlackElo "2168"]
[Result "1-0"]
[Round "11"]
[TimeControl "180+1"]
[Date "2022.11.09"]
[WhiteClock "0:00:03"]
[BlackClock "0:00:02"]

1. e4 {[%clk 0:02:50]}  e5 {[%clk 0:03:00]} 2. Nf3 {[%clk 0:02:49]}  Nc6 {[%clk 0:03:00]} 3. Nc3 {[%clk 0:02:50]}  Nf6 {[%clk 0:03:00]} 4. Bb5 {[%clk 0:02:50]}  Bd6 {[%clk 0:03:00]} 5. O-O {[%clk 0:02:48]}  O-O {[%clk 0:02:59]} 6. Bxc6 {[%clk 0:02:44]}  dxc6 {[%clk 0:02:57]} 7. d3 {[%clk 0:02:45]}  Re8 {[%clk 0:02:50]} 8. Ne2 {[%clk 0:02:16]}  h6 {[%clk 0:02:50]} 9. Ng3 {[%clk 0:02:09]}  Be6 {[%clk 0:02:46]} 10. Be3 {[%clk 0:01:43]}  Nd7 {[%clk 0:02:45]} 11. h3 {[%clk 0:01:15]}  c5 {[%clk 0:02:45]} 12. Nd2 {[%clk 0:00:51]}  b6 {[%clk 0:02:43]} 13. Nf5 {[%clk 0:00:33]}  Bf8 {[%clk 0:02:33]} 14. Qf3 {[%clk 0:00:28]}  Qf6 {[%clk 0:02:15]} 15. Ng3 {[%clk 0:00:18]}  Qg6 {[%clk 0:02:09]} 16. Qh5 {[%clk 0:00:16]}  Qxh5 {[%clk 0:02:07]} 17. Nxh5 {[%clk 0:00:15]}  g6 {[%clk 0:02:08]} 18. Ng3 {[%clk 0:00:15]}  f5 {[%clk 0:02:07]} 19. f4 {[%clk 0:00:15]}  exf4 {[%clk 0:02:05]} 20. Bxf4 {[%clk 0:00:16]}  fxe4 {[%clk 0:01:41]} 21. Ngxe4 {[%clk 0:00:17]}  Rac8 {[%clk 0:01:22]} 22. Rae1 {[%clk 0:00:09]}  Bd5 {[%clk 0:01:20]} 23. a3 {[%clk 0:00:06]}  Kh7 {[%clk 0:01:19]} 24. Bh2 {[%clk 0:00:04]}  Bg7 {[%clk 0:01:11]} 25. b3 {[%clk 0:00:04]}  Bd4+ {[%clk 0:00:53]} 26. Kh1 {[%clk 0:00:04]}  Kg7 {[%clk 0:00:45]} 27. c4 {[%clk 0:00:04]}  Bc6 {[%clk 0:00:38]} 28. Nf3 {[%clk 0:00:03]}  Nf6 {[%clk 0:00:25]} 29. Nxd4 {[%clk 0:00:01]}  Bxe4 {[%clk 0:00:26]} 30. dxe4 {[%clk 0:00:01]}  cxd4 {[%clk 0:00:26]} 31. e5 {[%clk 0:00:02]}  Nd7 {[%clk 0:00:18]} 32. e6 {[%clk 0:00:03]}  Nc5 {[%clk 0:00:19]} 33. Be5+ {[%clk 0:00:02]}  Kg8 {[%clk 0:00:20]} 34. Bxd4 {[%clk 0:00:01]}  Nxe6 {[%clk 0:00:19]} 35. Bc3 {[%clk 0:00:01]}  g5 {[%clk 0:00:16]} 36. b4 {[%clk 0:00:01]}  Nf4 {[%clk 0:00:16]} 37. Rxe8+ {[%clk 0:00:01]}  Rxe8 {[%clk 0:00:16]} 38. h4 {[%clk 0:00:01]}  Re3 {[%clk 0:00:15]} 39. Bd2 {[%clk 0:00:01]}  Rxa3 {[%clk 0:00:13]} 40. hxg5 {[%clk 0:00:01]}  hxg5 {[%clk 0:00:13]} 41. c5 {[%clk 0:00:01]}  bxc5 {[%clk 0:00:09]} 42. bxc5 {[%clk 0:00:02]}  Ra4 {[%clk 0:00:07]} 43. g3 {[%clk 0:00:02]}  Ne6 {[%clk 0:00:07]} 44. Rf5 {[%clk 0:00:02]}  Kg7 {[%clk 0:00:05]} 45. Bc3+ {[%clk 0:00:02]}  Kg6 {[%clk 0:00:05]} 46. Rf6+ {[%clk 0:00:02]}  Kh5 {[%clk 0:00:05]} 47. Rxe6 {[%clk 0:00:03]}  Kg4 {[%clk 0:00:05]} 48. Re3 {[%clk 0:00:04]}  Ra2 {[%clk 0:00:05]} 49. Be5 {[%clk 0:00:03]}  c6 {[%clk 0:00:05]} 50. Kg1 {[%clk 0:00:03]}  a5 {[%clk 0:00:05]} 51. Kf1 {[%clk 0:00:03]}  Rc2 {[%clk 0:00:06]} 52. Ke1 {[%clk 0:00:03]}  Rxc5 {[%clk 0:00:05]} 53. Kd2 {[%clk 0:00:04]}  Rd5+ {[%clk 0:00:06]} 54. Kc3 {[%clk 0:00:04]}  a4 {[%clk 0:00:06]} 55. Kc4 {[%clk 0:00:04]}  Rd1 {[%clk 0:00:05]} 56. Kb4 {[%clk 0:00:04]}  Rf1 {[%clk 0:00:04]} 57. Kxa4 {[%clk 0:00:04]}  Rf7 {[%clk 0:00:03]} 58. Kb4 {[%clk 0:00:04]}  Rb7+ {[%clk 0:00:01]} 59. Kc5 {[%clk 0:00:04]}  Rb1 {[%clk 0:00:01]} 60. Kxc6 {[%clk 0:00:04]}  Rc1+ {[%clk 0:00:02]} 61. Kd5 {[%clk 0:00:04]}  Rf1 {[%clk 0:00:02]} 62. Ke4 {[%clk 0:00:04]}  Rf8 {[%clk 0:00:02]} 63. Re2 {[%clk 0:00:04]}  Rf1 {[%clk 0:00:03]} 64. Re3 {[%clk 0:00:04]}  Rf8 {[%clk 0:00:03]} 65. Bd4 {[%clk 0:00:04]}  Rf1 {[%clk 0:00:04]} 66. Kd3 {[%clk 0:00:04]}  Rf7 {[%clk 0:00:04]} 67. Ke2 {[%clk 0:00:04]}  Rf8 {[%clk 0:00:04]} 68. Bc3 {[%clk 0:00:04]}  Rf7 {[%clk 0:00:05]} 69. Bd2 {[%clk 0:00:04]}  Rf8 {[%clk 0:00:05]} 70. Rd3 {[%clk 0:00:05]}  Rf5 {[%clk 0:00:05]} 71. Be1 {[%clk 0:00:05]}  Re5+ {[%clk 0:00:04]} 72. Kf1 {[%clk 0:00:05]}  Rf5+ {[%clk 0:00:05]} 73. Bf2 {[%clk 0:00:05]}  Kh3 {[%clk 0:00:05]} 74. Rd4 {[%clk 0:00:04]}  Rf7 {[%clk 0:00:03]} 75. Rd8 {[%clk 0:00:04]}  Kg4 {[%clk 0:00:03]} 76. Kg2 {[%clk 0:00:04]}  Rf8 {[%clk 0:00:02]} 77. Rxf8 {[%clk 0:00:03]} 1-0


[Site "https://www.chess.com"]

[Event "Titled Tuesday Blitz November 08 Early 2022"]
[White "Adnan, Habib"]
[Black "Koridze, Lile"]
[WhiteFideId "11202270"]
[BlackFideId "13612514"]
[WhiteElo "2110"]
[BlackElo "2050"]
[Result "0-1"]
[Round "11"]
[TimeControl "180+1"]
[Date "2022.11.09"]
[WhiteClock "0:00:57"]
[BlackClock "0:01:41"]

1. d4 {[%clk 0:03:00]}  Nf6 {[%clk 0:02:59]} 2. c4 {[%clk 0:03:01]}  e6 {[%clk 0:02:59]} 3. g3 {[%clk 0:03:01]}  d5 {[%clk 0:02:59]} 4. Bg2 {[%clk 0:03:02]}  Bb4+ {[%clk 0:02:59]} 5. Bd2 {[%clk 0:03:01]}  Be7 {[%clk 0:02:59]} 6. Nf3 {[%clk 0:03:01]}  O-O {[%clk 0:02:59]} 7. O-O {[%clk 0:03:02]}  c6 {[%clk 0:02:59]} 8. Qc2 {[%clk 0:03:02]}  b6 {[%clk 0:02:59]} 9. Bf4 {[%clk 0:03:02]}  Bb7 {[%clk 0:02:39]} 10. Nc3 {[%clk 0:02:48]}  Nbd7 {[%clk 0:02:14]} 11. e4 {[%clk 0:02:45]}  dxe4 {[%clk 0:02:13]} 12. Nxe4 {[%clk 0:02:37]}  Nxe4 {[%clk 0:02:07]} 13. Qxe4 {[%clk 0:02:31]}  Nf6 {[%clk 0:02:06]} 14. Qe2 {[%clk 0:02:17]}  c5 {[%clk 0:02:04]} 15. Rfd1 {[%clk 0:02:07]}  cxd4 {[%clk 0:02:01]} 16. Nxd4 {[%clk 0:02:05]}  Qc8 {[%clk 0:01:57]} 17. Bxb7 {[%clk 0:01:33]}  Qxb7 {[%clk 0:01:57]} 18. Nb5 {[%clk 0:01:31]}  Rfd8 {[%clk 0:01:52]} 19. Rxd8+ {[%clk 0:01:27]}  Rxd8 {[%clk 0:01:53]} 20. Rd1 {[%clk 0:01:27]}  h6 {[%clk 0:01:48]} 21. Nd6 {[%clk 0:01:01]}  Qc6 {[%clk 0:01:44]} 22. Nb5 {[%clk 0:00:56]}  Rxd1+ {[%clk 0:01:41]} 23. Qe1 {[%clk 0:00:57]}  Rxe1# {[%clk 0:01:41]} 0-1


[Site "https://www.chess.com"]

[Event "Titled Tuesday Blitz November 08 Early 2022"]
[White "Alhadad, Mahmoud"]
[Black "Mitrabha, Guha"]
[WhiteFideId "11501863"]
[BlackFideId "5057000"]
[WhiteElo "1955"]
[BlackElo "2526"]
[Result "0-1"]
[Round "11"]
[TimeControl "180+1"]
[Date "2022.11.09"]
[WhiteClock "0:00:48"]
[BlackClock "0:00:19"]

1. e4 {[%clk 0:03:00]}  Nc6 {[%clk 0:02:07]} 2. Nc3 {[%clk 0:02:44]}  e5 {[%clk 0:02:07]} 3. f4 {[%clk 0:02:44]}  Bc5 {[%clk 0:02:08]} 4. Nf3 {[%clk 0:02:44]}  d6 {[%clk 0:02:07]} 5. Bc4 {[%clk 0:02:42]}  Nf6 {[%clk 0:02:06]} 6. d3 {[%clk 0:02:42]}  O-O {[%clk 0:01:58]} 7. f5 {[%clk 0:02:42]}  Nd4 {[%clk 0:01:50]} 8. Nxd4 {[%clk 0:02:33]}  exd4 {[%clk 0:01:39]} 9. Ne2 {[%clk 0:02:28]}  d5 {[%clk 0:01:38]} 10. Bxd5 {[%clk 0:02:20]}  Nxd5 {[%clk 0:01:31]} 11. exd5 {[%clk 0:02:21]}  Qxd5 {[%clk 0:01:29]} 12. O-O {[%clk 0:02:17]}  Bxf5 {[%clk 0:01:14]} 13. Ng3 {[%clk 0:02:13]}  Bg6 {[%clk 0:00:44]} 14. Bf4 {[%clk 0:02:06]}  Bd6 {[%clk 0:00:38]} 15. Qg4 {[%clk 0:02:06]}  Rfe8 {[%clk 0:00:29]} 16. h4 {[%clk 0:02:05]}  h5 {[%clk 0:00:23]} 17. Qf3 {[%clk 0:01:40]}  Qxf3 {[%clk 0:00:21]} 18. Rxf3 {[%clk 0:01:40]}  Bxf4 {[%clk 0:00:21]} 19. Rxf4 {[%clk 0:01:41]}  c5 {[%clk 0:00:22]} 20. Raf1 {[%clk 0:01:28]}  Re5 {[%clk 0:00:18]} 21. Ne4 {[%clk 0:01:08]}  Rae8 {[%clk 0:00:19]} 22. Ng5 {[%clk 0:01:06]}  f6 {[%clk 0:00:18]} 23. Nf3 {[%clk 0:01:06]}  Re2 {[%clk 0:00:18]} 24. g4 {[%clk 0:01:06]}  hxg4 {[%clk 0:00:18]} 25. Rxg4 {[%clk 0:01:07]}  Bh5 {[%clk 0:00:19]} 26. Rg3 {[%clk 0:01:04]}  Bxf3 {[%clk 0:00:20]} 27. Rfxf3 {[%clk 0:01:05]}  Rd2 {[%clk 0:00:21]} 28. Rxf6 {[%clk 0:01:04]}  Re1+ {[%clk 0:00:20]} 29. Rf1 {[%clk 0:01:04]}  Rxf1+ {[%clk 0:00:21]} 30. Kxf1 {[%clk 0:01:05]}  Rxc2 {[%clk 0:00:22]} 31. Rg2 {[%clk 0:00:42]}  Rxg2 {[%clk 0:00:21]} 32. Kxg2 {[%clk 0:00:43]}  Kf7 {[%clk 0:00:21]} 33. Kf3 {[%clk 0:00:43]}  Ke6 {[%clk 0:00:22]} 34. Ke4 {[%clk 0:00:44]}  b5 {[%clk 0:00:20]} 35. b3 {[%clk 0:00:44]}  a5 {[%clk 0:00:16]} 36. a3 {[%clk 0:00:44]}  a4 {[%clk 0:00:15]} 37. b4 {[%clk 0:00:43]}  cxb4 {[%clk 0:00:15]} 38. Kxd4 {[%clk 0:00:44]}  bxa3 {[%clk 0:00:16]} 39. Kc3 {[%clk 0:00:44]}  b4+ {[%clk 0:00:16]} 40. Kxb4 {[%clk 0:00:45]}  a2 {[%clk 0:00:16]} 41. Kc5 {[%clk 0:00:46]}  a1=Q {[%clk 0:00:17]} 42. d4 {[%clk 0:00:46]}  Qc3+ {[%clk 0:00:17]} 43. Kb6 {[%clk 0:00:46]}  Kd5 {[%clk 0:00:18]} 44. h5 {[%clk 0:00:47]}  Qc6+ {[%clk 0:00:18]} 45. Ka5 {[%clk 0:00:47]}  Kc4 {[%clk 0:00:18]} 46. h6 {[%clk 0:00:48]}  Qb5# {[%clk 0:00:19]} 0-1


[Site "https://www.chess.com"]

[Event "Titled Tuesday Blitz November 08 Early 2022"]
[White "Antonova, Nadezhda"]
[Black "Ronka, Erik"]
[WhiteFideId "14700182"]
[BlackFideId "505080"]
[WhiteElo "1813"]
[BlackElo "2264"]
[Result "1/2-1/2"]
[Round "11"]
[TimeControl "180+1"]
[Date "2022.11.09"]
[WhiteClock "0:00:08"]
[BlackClock "0:00:09"]

1. Nf3 {[%clk 0:02:59]}  Nf6 {[%clk 0:02:57]} 2. b3 {[%clk 0:02:59]}  g6 {[%clk 0:02:55]} 3. Bb2 {[%clk 0:03:00]}  Bg7 {[%clk 0:02:55]} 4. g3 {[%clk 0:03:00]}  O-O {[%clk 0:02:56]} 5. Bg2 {[%clk 0:03:01]}  d6 {[%clk 0:02:55]} 6. d4 {[%clk 0:03:01]}  c5 {[%clk 0:02:55]} 7. O-O {[%clk 0:03:00]}  cxd4 {[%clk 0:02:52]} 8. Nxd4 {[%clk 0:03:00]}  d5 {[%clk 0:02:52]} 9. Nf3 {[%clk 0:02:57]}  Nc6 {[%clk 0:02:51]} 10. c4 {[%clk 0:02:54]}  dxc4 {[%clk 0:02:45]} 11. bxc4 {[%clk 0:02:54]}  Be6 {[%clk 0:02:40]} 12. Nbd2 {[%clk 0:02:52]}  Rc8 {[%clk 0:02:29]} 13. Rc1 {[%clk 0:02:50]}  Qa5 {[%clk 0:02:24]} 14. Qb3 {[%clk 0:02:49]}  Qa6 {[%clk 0:02:17]} 15. Qb5 {[%clk 0:02:49]}  Rfd8 {[%clk 0:01:51]} 16. Qxa6 {[%clk 0:02:21]}  bxa6 {[%clk 0:01:52]} 17. Nb3 {[%clk 0:02:22]}  Nb4 {[%clk 0:01:49]} 18. a3 {[%clk 0:02:08]}  Nc6 {[%clk 0:01:22]} 19. Nc5 {[%clk 0:02:02]}  Bf5 {[%clk 0:01:04]} 20. Nxa6 {[%clk 0:01:56]}  Na5 {[%clk 0:00:57]} 21. c5 {[%clk 0:01:41]}  Be4 {[%clk 0:00:46]} 22. Be5 {[%clk 0:01:19]}  Nd7 {[%clk 0:00:40]} 23. Bc7 {[%clk 0:01:14]}  Rxc7 {[%clk 0:00:33]} 24. Nxc7 {[%clk 0:01:15]}  Nb3 {[%clk 0:00:31]} 25. Rc4 {[%clk 0:00:51]}  Bc6 {[%clk 0:00:22]} 26. Rd1 {[%clk 0:00:43]}  Rc8 {[%clk 0:00:21]} 27. Na6 {[%clk 0:00:41]}  Bb5 {[%clk 0:00:21]} 28. Rc2 {[%clk 0:00:18]}  Bxa6 {[%clk 0:00:08]} 29. Rxd7 {[%clk 0:00:17]}  Bb5 {[%clk 0:00:05]} 30. Rxa7 {[%clk 0:00:15]}  g5 {[%clk 0:00:06]} 31. Rxe7 {[%clk 0:00:14]}  g4 {[%clk 0:00:05]} 32. Nh4 {[%clk 0:00:13]}  Nd4 {[%clk 0:00:06]} 33. Ra2 {[%clk 0:00:11]}  Bc4 {[%clk 0:00:06]} 34. Rd2 {[%clk 0:00:10]}  Nb3 {[%clk 0:00:04]} 35. Rd1 {[%clk 0:00:10]}  Bf8 {[%clk 0:00:04]} 36. Re4 {[%clk 0:00:09]}  Bxc5 {[%clk 0:00:03]} 37. Rxg4+ {[%clk 0:00:09]}  Kf8 {[%clk 0:00:02]} 38. Rxc4 {[%clk 0:00:09]}  Bxf2+ {[%clk 0:00:02]} 39. Kxf2 {[%clk 0:00:10]}  Rxc4 {[%clk 0:00:03]} 40. Nf5 {[%clk 0:00:10]}  Ra4 {[%clk 0:00:03]} 41. Ne3 {[%clk 0:00:10]}  Nc5 {[%clk 0:00:03]} 42. Nd5 {[%clk 0:00:11]}  Rxa3 {[%clk 0:00:03]} 43. Nf6 {[%clk 0:00:11]}  Ne6 {[%clk 0:00:03]} 44. Nd7+ {[%clk 0:00:11]}  Ke7 {[%clk 0:00:03]} 45. Ne5 {[%clk 0:00:12]}  Ra2 {[%clk 0:00:03]} 46. Nf3 {[%clk 0:00:12]}  Ng7 {[%clk 0:00:03]} 47. Rb1 {[%clk 0:00:12]}  Ra7 {[%clk 0:00:02]} 48. Rb7+ {[%clk 0:00:13]}  Rxb7 {[%clk 0:00:02]} 49. Ng5 {[%clk 0:00:13]}  Rb2 {[%clk 0:00:02]} 50. Ne4 {[%clk 0:00:13]}  Ne6 {[%clk 0:00:02]} 51. h4 {[%clk 0:00:13]}  f5 {[%clk 0:00:02]} 52. Nc3 {[%clk 0:00:12]}  Nd4 {[%clk 0:00:02]} 53. Nd5+ {[%clk 0:00:13]}  Kd6 {[%clk 0:00:02]} 54. Nf4 {[%clk 0:00:13]}  Ne6 {[%clk 0:00:02]} 55. Nh5 {[%clk 0:00:11]}  Rb8 {[%clk 0:00:02]} 56. Nf6 {[%clk 0:00:11]}  Nd4 {[%clk 0:00:03]} 57. Nxh7 {[%clk 0:00:11]}  Rb2 {[%clk 0:00:04]} 58. Bf3 {[%clk 0:00:11]}  Ke5 {[%clk 0:00:03]} 59. Ng5 {[%clk 0:00:11]}  f4 {[%clk 0:00:04]} 60. g4 {[%clk 0:00:10]}  Ne6 {[%clk 0:00:03]} 61. Nxe6 {[%clk 0:00:10]}  Kxe6 {[%clk 0:00:04]} 62. g5 {[%clk 0:00:09]}  Kf5 {[%clk 0:00:04]} 63. Kf1 {[%clk 0:00:09]}  Rb1+ {[%clk 0:00:04]} 64. Kf2 {[%clk 0:00:09]}  Rb2 {[%clk 0:00:05]} 65. Ke1 {[%clk 0:00:09]}  Rb6 {[%clk 0:00:05]} 66. Kd2 {[%clk 0:00:09]}  Rb8 {[%clk 0:00:05]} 67. Ke1 {[%clk 0:00:10]}  Rh8 {[%clk 0:00:05]} 68. h5 {[%clk 0:00:09]}  Kxg5 {[%clk 0:00:06]} 69. Kf2 {[%clk 0:00:10]}  Kh4 {[%clk 0:00:06]} 70. Kf1 {[%clk 0:00:10]}  Kg3 {[%clk 0:00:07]} 71. Ke1 {[%clk 0:00:11]}  Kh4 {[%clk 0:00:06]} 72. Kd2 {[%clk 0:00:11]}  Kg5 {[%clk 0:00:07]} 73. Kd3 {[%clk 0:00:11]}  Rd8+ {[%clk 0:00:07]} 74. Ke4 {[%clk 0:00:11]}  Re8+ {[%clk 0:00:07]} 75. Kd5 {[%clk 0:00:12]}  Kf5 {[%clk 0:00:08]} 76. Kd6 {[%clk 0:00:11]}  Rd8+ {[%clk 0:00:09]} 77. Ke7 {[%clk 0:00:12]}  Rh8 {[%clk 0:00:08]} 78. Kf7 {[%clk 0:00:12]}  Kg5 {[%clk 0:00:08]} 79. Kg7 {[%clk 0:00:12]}  Rh6 {[%clk 0:00:09]} 80. Kf7 {[%clk 0:00:11]}  Rb6 {[%clk 0:00:08]} 81. Kg7 {[%clk 0:00:11]}  Ra6 {[%clk 0:00:08]} 82. Kf7 {[%clk 0:00:11]}  Ra7+ {[%clk 0:00:09]} 83. Ke6 {[%clk 0:00:11]}  Ra6+ {[%clk 0:00:09]} 84. Ke5 {[%clk 0:00:11]}  Ra5+ {[%clk 0:00:09]} 85. Ke6 {[%clk 0:00:11]}  Ra6+ {[%clk 0:00:08]} 86. Ke5 {[%clk 0:00:11]}  Ra7 {[%clk 0:00:09]} 87. Ke6 {[%clk 0:00:11]}  Rc7 {[%clk 0:00:09]} 88. Ke5 {[%clk 0:00:11]}  Rc3 {[%clk 0:00:09]} 89. Ke4 {[%clk 0:00:11]}  Re3+ {[%clk 0:00:10]} 90. Kd4 {[%clk 0:00:12]}  Kf5 {[%clk 0:00:10]} 91. Kd5 {[%clk 0:00:10]}  Re8 {[%clk 0:00:09]} 92. Kd4 {[%clk 0:00:10]}  Rd8+ {[%clk 0:00:09]} 93. Kc3 {[%clk 0:00:10]}  Ke5 {[%clk 0:00:10]} 94. Kc4 {[%clk 0:00:09]}  Rd6 {[%clk 0:00:10]} 95. Kc5 {[%clk 0:00:09]}  Rh6 {[%clk 0:00:09]} 96. Kc4 {[%clk 0:00:09]}  Rh8 {[%clk 0:00:09]} 97. Kc5 {[%clk 0:00:09]}  Rc8+ {[%clk 0:00:09]} 98. Kb4 {[%clk 0:00:10]}  Kd4 {[%clk 0:00:09]} 99. Kb5 {[%clk 0:00:09]}  Ke5 {[%clk 0:00:07]} 100. Kb4 {[%clk 0:00:09]}  Kf5 {[%clk 0:00:07]} 101. Kb5 {[%clk 0:00:08]}  Kg5 {[%clk 0:00:07]} 102. Kb4 {[%clk 0:00:08]}  Rh8 {[%clk 0:00:07]} 103. Kc3 {[%clk 0:00:09]}  Rxh5 {[%clk 0:00:07]} 104. Bxh5 {[%clk 0:00:09]}  Kxh5 {[%clk 0:00:08]} 105. Kd4 {[%clk 0:00:09]}  Kg4 {[%clk 0:00:08]} 106. Ke4 {[%clk 0:00:09]}  Kg3 {[%clk 0:00:08]} 107. Kf5 {[%clk 0:00:08]}  f3 {[%clk 0:00:08]} 108. exf3 {[%clk 0:00:08]}  Kxf3 {[%clk 0:00:09]} 1/2-1/2


[Site "https://www.chess.com"]

[Event "Titled Tuesday Blitz November 08 Early 2022"]
[White "Arabidze, Meri"]
[Black "Makridis, Dimitrios"]
[WhiteFideId "13604040"]
[BlackFideId "25864475"]
[WhiteElo "2403"]
[BlackElo "2272"]
[Result "1-0"]
[Round "11"]
[TimeControl "180+1"]
[Date "2022.11.09"]
[WhiteClock "0:00:17"]
[BlackClock "0:00:11"]

1. Nf3 {[%clk 0:02:57]}  Nf6 {[%clk 0:02:56]} 2. d4 {[%clk 0:02:57]}  e6 {[%clk 0:02:54]} 3. g3 {[%clk 0:02:57]}  c5 {[%clk 0:02:54]} 4. Bg2 {[%clk 0:02:56]}  Nc6 {[%clk 0:02:47]} 5. c4 {[%clk 0:02:55]}  cxd4 {[%clk 0:02:47]} 6. Nxd4 {[%clk 0:02:56]}  Bb4+ {[%clk 0:02:42]} 7. Nc3 {[%clk 0:02:55]}  O-O {[%clk 0:02:41]} 8. O-O {[%clk 0:02:55]}  d5 {[%clk 0:02:38]} 9. cxd5 {[%clk 0:02:53]}  exd5 {[%clk 0:02:39]} 10. Bg5 {[%clk 0:02:52]}  Be7 {[%clk 0:02:35]} 11. e3 {[%clk 0:02:43]}  Nxd4 {[%clk 0:02:30]} 12. Qxd4 {[%clk 0:02:43]}  Be6 {[%clk 0:02:29]} 13. Rfd1 {[%clk 0:02:39]}  h6 {[%clk 0:02:28]} 14. Bxf6 {[%clk 0:02:36]}  Bxf6 {[%clk 0:02:29]} 15. Qb4 {[%clk 0:02:36]}  Bxc3 {[%clk 0:02:25]} 16. Qxc3 {[%clk 0:02:36]}  Qd7 {[%clk 0:02:10]} 17. Rd4 {[%clk 0:02:33]}  Rac8 {[%clk 0:02:07]} 18. Qd2 {[%clk 0:02:31]}  Rc5 {[%clk 0:02:02]} 19. Rd1 {[%clk 0:02:30]}  Qb5 {[%clk 0:01:26]} 20. b3 {[%clk 0:02:12]}  Rfc8 {[%clk 0:01:25]} 21. Bxd5 {[%clk 0:02:02]}  Rc2 {[%clk 0:01:19]} 22. Bc4 {[%clk 0:01:18]}  Qf5 {[%clk 0:00:55]} 23. Qxc2 {[%clk 0:00:50]}  Qxc2 {[%clk 0:00:49]} 24. Rd8+ {[%clk 0:00:50]}  Kh7 {[%clk 0:00:35]} 25. Bd3+ {[%clk 0:00:49]}  g6 {[%clk 0:00:31]} 26. Bxc2 {[%clk 0:00:48]}  Rxc2 {[%clk 0:00:32]} 27. R8d2 {[%clk 0:00:47]}  Rc7 {[%clk 0:00:31]} 28. Kg2 {[%clk 0:00:45]}  Kg7 {[%clk 0:00:31]} 29. f3 {[%clk 0:00:45]}  h5 {[%clk 0:00:31]} 30. e4 {[%clk 0:00:45]}  g5 {[%clk 0:00:31]} 31. Kf2 {[%clk 0:00:45]}  f6 {[%clk 0:00:31]} 32. f4 {[%clk 0:00:36]}  Bg4 {[%clk 0:00:26]} 33. Re1 {[%clk 0:00:35]}  gxf4 {[%clk 0:00:23]} 34. gxf4 {[%clk 0:00:35]}  Rc3 {[%clk 0:00:23]} 35. Re3 {[%clk 0:00:33]}  Rc1 {[%clk 0:00:23]} 36. e5 {[%clk 0:00:33]}  fxe5 {[%clk 0:00:23]} 37. fxe5 {[%clk 0:00:34]}  Be6 {[%clk 0:00:23]} 38. Rd6 {[%clk 0:00:31]}  Kf7 {[%clk 0:00:23]} 39. Rf3+ {[%clk 0:00:30]}  Ke7 {[%clk 0:00:24]} 40. Rf6 {[%clk 0:00:30]}  Rc2+ {[%clk 0:00:23]} 41. Kg3 {[%clk 0:00:29]}  Bg4 {[%clk 0:00:16]} 42. Rh6 {[%clk 0:00:29]}  Rc3+ {[%clk 0:00:14]} 43. Kh4 {[%clk 0:00:29]}  Rc2 {[%clk 0:00:13]} 44. Rh7+ {[%clk 0:00:29]}  Ke8 {[%clk 0:00:13]} 45. Rg6 {[%clk 0:00:22]}  Rxh2+ {[%clk 0:00:13]} 46. Kg5 {[%clk 0:00:22]}  Kf8 {[%clk 0:00:13]} 47. e6 {[%clk 0:00:21]}  Re2 {[%clk 0:00:12]} 48. Rf7+ {[%clk 0:00:16]}  Ke8 {[%clk 0:00:11]} 49. Rg8# {[%clk 0:00:17]} 1-0


[Site "https://www.chess.com"]